fUSD/lending_fUSD_20250309
["ID","MTS","AMOUNT","RATE_DAILY","PERIOD"]
[355769968,1741547448998,-1211.07,9.935e-05,2]
[355769969,1741547449009,-500.0,9.935e-05,2]
[355769970,1741547449019,-500.0,9.935e-05,2]
[355769971,1741547449030,-500.0,9.935e-05,2]
[355769972,1741547449040,-500.0,9.935e-05,2]
[355769973,1741547449050,-524.48,9.935e-05,2]
[355769974,1741547449060,-500.0,9.935e-05,2]
[355769975,1741547449071,-633.45,9.935e-05,2]
[355769976,1741547449082,-1636.6,9.935e-05,2]
[355769977,1741547449093,-610.35,9.935e-05,2]
[355769978,1741547449103,-500.0,9.935e-05,2]
[355769979,1741547449114,-993.06,9.935e-05,2]
[355769980,1741547449125,-500.0,9.935e-05,2]
[355769981,1741547449135,-949.73,9.935e-05,2]
[355769982,1741547449146,-628.2,9.935e-05,2]
[355769983,1741547449156,-831.63,9.935e-05,2]
[355769984,1741547449167,-693.19,9.935e-05,2]
[355769985,1741547449178,-607.2,9.935e-05,2]
[355769986,1741547449188,-1454.66,9.935e-05,2]
[355769987,1741547449199,-1211.0,9.935e-05,2]
[355769988,1741547449209,-500.0,9.935e-05,2]
[355769989,1741547449219,-666.96,9.935e-05,2]
[355769990,1741547449230,-500.0,9.935e-05,2]
[355769991,1741547449244,-540.48,9.935e-05,2]
[355769992,1741547449254,-604.86,9.935e-05,2]
[355769993,1741547449264,-655.77,9.935e-05,2]
[355769994,1741547449276,-7687.09,9.935e-05,2]
[355769995,1741547449289,-654.33,9.935e-05,2]
[355769996,1741547449301,-500.0,9.935e-05,2]
[355769997,1741547449311,-2987.12,9.935e-05,2]
[355769998,1741547449322,-500.0,9.935e-05,2]
[355769999,1741547449334,-500.0,9.935e-05,2]
[355770000,1741547449343,-850.2,9.935e-05,2]
[355770001,1741547449354,-735.89,9.935e-05,2]
[355770002,1741547449366,-500.0,9.935e-05,2]
[355770003,1741547449377,-676.15,9.935e-05,2]
[355770004,1741547449388,-733.58,9.935e-05,2]
[355770005,1741547449399,-615.86,9.935e-05,2]
[355770006,1741547449410,-150.0,9.936e-05,2]
[355770007,1741547449421,-2501.90249056,9.936e-05,2]
[355770008,1741547449431,-745.0,9.946e-05,2]
[355770009,1741547449442,-500.0,9.946e-05,2]
[355770010,1741547449452,-3671.0,9.973e-05,2]
[355770011,1741547449463,-500.0,9.973e-05,2]
[355770012,1741547449473,-160.44211166,9.973e-05,2]
[355770013,1741547449483,-745.0,9.974e-05,2]
[355770014,1741547449495,-500.0,9.974e-05,2]
[355770015,1741547449505,-23992.05,9.99e-05,2]
[355770016,1741547449516,-433.46611971,9.992e-05,2]
[355770017,1741547449526,-6297.7782037,9.993e-05,2]
[355770018,1741547449536,-5794.0978292,9.993e-05,2]
[355770019,1741547449551,-993.4942741,9.993e-05,2]
[355770020,1741547449562,-914.0371144,9.993e-05,2]
[355770021,1741547449573,-4283.3548568,9.993e-05,2]
[355770022,1741547449583,-3940.7829674,9.993e-05,2]
[355770023,1741547449594,-3874.02569355,9.999e-05,2]
[355770024,1741547449604,-1000.0,9.999e-05,2]
[355770025,1741547449615,-1000.0,9.999e-05,2]
[355770026,1741547449625,-1000.0,9.999e-05,2]
[355770027,1741547449636,-150.0,9.999e-05,2]
[355770028,1741547449646,-3801.59311236,9.999e-05,2]
[355770029,1741547449657,-1515.42,9.999e-05,2]
[355770030,1741547449668,-531.28754109,0.0001,2]
[355770031,1741547449679,-356086.56743284,0.0001,2]
[355770032,1741547449696,-2238.70649675,0.0001,2]
[355770033,1741547450050,-124618.04584236,0.0001,2]
[355770034,1741547450076,-8290.0,0.0001,2]
[355770035,1741547450088,-491.42008742,0.0001,2]
[355770036,1741547450111,-2290.7,0.0001,2]
[355770037,1741547450481,-233.14922233,8.739e-05,2]
[355770038,1741547450491,-500.0,8.839e-05,2]
[355770039,1741547450500,-627.93,9.113e-05,2]
[355770040,1741547450510,-258341.26365216,0.0001,2]
[355770041,1741547450521,-25214.34414427,0.0001,2]
[355770042,1741547450532,-3253.84897488,0.0001,2]
[355770043,1741547451173,-164420.12460102,0.0001,2]
[355770044,1741547451182,-148913.90560996,0.0001,2]
[355770045,1741547451554,-500.0,8.839e-05,2]
[355770046,1741547451564,-500.0,8.839e-05,2]
[355770047,1741547451573,-488.75,9.113e-05,2]
[355770048,1741547451583,-500.0,9.113e-05,2]
[355770049,1741547451592,-10896.25648281,0.0001,2]
[355770050,1741547451603,-332.22828,0.0001,2]
[355770051,1741547451621,-500.0,9.387e-05,2]
[355770052,1741547451631,-250894.60754451,0.0001,2]
[355770053,1741547451669,-9.87401787,0.0001,2]
[355770054,1741547451680,-3361.005,0.0001,2]
[355770055,1741547451691,-406.95227999,0.0001,2]
[355770057,1741547922994,1116.17003863,8.219e-05,2]
[355770058,1741548257311,175.58,7.949e-05,2]
[355770059,1741548269818,906.18206986,7e-05,2]
[355770134,1741548631909,-300.0,8.218e-05,2]
[355770135,1741548631919,-121.56096,8.219e-05,2]
[355770136,1741548631930,-28.43904,8.219e-05,2]
[355770137,1741548631940,-550.0,8.219e-05,2]
[355770138,1741548631949,-89.1407167,8.219e-05,2]
[355770139,1741548631961,-72.33924467,8.219e-05,2]
[355770140,1741548631971,-233.17910531,8.219e-05,2]
[355770141,1741548631982,-876.39089469,8.219e-05,2]
[355770142,1741548631991,-1000.0,8.219e-05,2]
[355770143,1741548632001,-250.0,8.219e-05,2]
[355770144,1741548632011,-150.0,8.249e-05,2]
[355770145,1741548632020,-550.0,8.249e-05,2]
[355770146,1741548632029,-158.07,8.27e-05,2]
[355770147,1741548632039,-157.34,8.31e-05,2]
[355770148,1741548632048,-768.87,8.312e-05,2]
[355770149,1741548632058,-158.07,8.341e-05,2]
[355770150,1741548632067,-158.07,8.412e-05,2]
[355770151,1741548632077,-1665.69,8.473e-05,2]
[355770152,1741548632086,-158.07,8.483e-05,2]
[355770153,1741548632095,-158.07,8.554e-05,2]
[355770154,1741548632104,-158.07,8.625e-05,2]
[355770156,1741548632114,-1051.17,8.657e-05,2]
[355770158,1741548632123,-158.07,8.696e-05,2]
[355770160,1741548632132,-1792.3,8.734e-05,2]
[355770162,1741548632141,-124.58661726,8.738e-05,2]
[355770164,1741548632156,-584.23675258,8.738e-05,2]
[355770265,1741548637725,-390.84558701,8.738e-05,2]
[355770266,1741548637736,-150.0,8.738e-05,2]
[355770267,1741548637746,-30229.2636,8.739e-05,2]
[355770269,1741548637756,-158.07,8.766e-05,2]
[355770270,1741548637769,-500.0,8.839e-05,2]
[355770271,1741548637779,-511.54,8.839e-05,2]
[355770272,1741548637789,-500.0,8.839e-05,2]
[355770273,1741548637799,-500.0,8.839e-05,2]
[355770274,1741548637809,-500.0,8.839e-05,2]
[355770275,1741548637823,-567.56,8.839e-05,2]
[355770276,1741548637833,-500.0,8.839e-05,2]
[355770277,1741548637843,-22808.16841563,8.89e-05,2]
[355770278,1741548637850,-1064.68506676,9e-05,2]
[355770279,1741548637858,-1192.5776,9.012e-05,2]
[355770280,1741548637866,-150.0,9.04e-05,2]
[355770281,1741548637875,-550.0,9.04e-05,2]
[355770282,1741548637884,-420.0,9.04e-05,2]
[355770283,1741548637894,-400.0,9.1e-05,2]
[355770284,1741548637903,-458.83903662,9.112e-05,2]
[355770285,1741548637913,-500.0,9.112e-05,2]
[355770286,1741548637922,-500.0,9.112e-05,2]
[355770287,1741548637932,-500.0,9.112e-05,2]
[355770288,1741548637942,-500.0,9.112e-05,2]
[355770289,1741548637951,-500.0,9.112e-05,2]
[355770290,1741548637962,-500.0,9.112e-05,2]
[355770291,1741548637972,-500.0,9.112e-05,2]
[355770292,1741548637982,-500.0,9.112e-05,2]
[355770293,1741548637993,-514.26567893,9.112e-05,2]
[355770294,1741548638002,-500.0,9.112e-05,2]
[355770295,1741548638012,-500.0,9.112e-05,2]
[355770296,1741548638022,-500.0,9.112e-05,2]
[355770297,1741548638032,-500.0,9.112e-05,2]
[355770298,1741548638041,-500.0,9.112e-05,2]
[355770299,1741548638051,-500.0,9.112e-05,2]
[355770300,1741548638062,-500.0,9.112e-05,2]
[355770301,1741548638074,-500.0,9.112e-05,2]
[355770302,1741548638084,-500.0,9.112e-05,2]
[355770303,1741548638093,-500.0,9.112e-05,2]
[355770304,1741548638103,-335.23,9.112e-05,2]
[355770305,1741548638113,-500.0,9.112e-05,2]
[355770306,1741548638123,-269.2,9.112e-05,2]
[355770307,1741548638133,-500.0,9.112e-05,2]
[355770308,1741548638143,-500.0,9.112e-05,2]
[355770309,1741548638152,-500.0,9.112e-05,2]
[355770310,1741548638162,-368.96,9.112e-05,2]
[355770312,1741548638171,-500.0,9.112e-05,2]
[355770314,1741548638181,-220.92995944,9.112e-05,2]
[355770316,1741548638190,-500.0,9.112e-05,2]
[355770317,1741548638200,-500.0,9.112e-05,2]
[355770320,1741548638209,-500.0,9.112e-05,2]
[355770322,1741548638219,-406.43,9.112e-05,2]
[355770323,1741548638228,-500.0,9.112e-05,2]
[355770325,1741548638237,-500.0,9.112e-05,2]
[355770327,1741548638246,-257.15033983,9.112e-05,2]
[355770329,1741548638256,-500.0,9.112e-05,2]
[355770331,1741548638265,-500.0,9.112e-05,2]
[355770333,1741548638275,-500.0,9.112e-05,2]
[355770335,1741548638284,-500.0,9.112e-05,2]
[355770337,1741548638294,-500.0,9.112e-05,2]
[355770339,1741548638303,-500.0,9.112e-05,2]
[355770341,1741548638316,-500.0,9.112e-05,2]
[355770343,1741548638325,-500.0,9.112e-05,2]
[355770346,1741548638335,-500.0,9.112e-05,2]
[355770349,1741548638344,-500.0,9.112e-05,2]
[355770351,1741548638354,-500.0,9.112e-05,2]
[355770353,1741548638364,-500.0,9.112e-05,2]
[355770355,1741548638374,-500.0,9.112e-05,2]
[355770357,1741548638383,-500.0,9.112e-05,2]
[355770359,1741548638393,-500.0,9.112e-05,2]
[355770361,1741548638402,-500.0,9.112e-05,2]
[355770363,1741548638411,-500.0,9.112e-05,2]
[355770365,1741548638420,-500.0,9.112e-05,2]
[355770367,1741548638429,-500.0,9.112e-05,2]
[355770369,1741548638439,-500.0,9.112e-05,2]
[355770371,1741548638448,-500.0,9.112e-05,2]
[355770373,1741548638457,-500.0,9.112e-05,2]
[355770375,1741548638466,-500.0,9.112e-05,2]
[355770377,1741548638476,-500.0,9.112e-05,2]
[355770379,1741548638485,-500.0,9.112e-05,2]
[355770381,1741548638494,-547.81,9.112e-05,2]
[355770383,1741548638504,-558.3,9.112e-05,2]
[355770385,1741548638513,-595.96,9.112e-05,2]
[355770387,1741548638522,-1455.57,9.112e-05,2]
[355770389,1741548638531,-500.0,9.112e-05,2]
[355770391,1741548638540,-500.0,9.112e-05,2]
[355770393,1741548638549,-500.0,9.112e-05,2]
[355770395,1741548638558,-500.0,9.112e-05,2]
[355770397,1741548638575,-1443.67,9.112e-05,2]
[355770399,1741548638584,-500.0,9.112e-05,2]
[355770400,1741548638593,-500.0,9.112e-05,2]
[355770401,1741548638602,-656.41,9.112e-05,2]
[355770402,1741548638611,-1115.79,9.112e-05,2]
[355770403,1741548638620,-783.03,9.112e-05,2]
[355770404,1741548638629,-500.0,9.112e-05,2]
[355770405,1741548638638,-5495.69,9.112e-05,2]
[355770406,1741548638647,-500.0,9.112e-05,2]
[355770407,1741548638656,-500.0,9.112e-05,2]
[355770408,1741548638666,-500.0,9.112e-05,2]
[355770409,1741548638675,-500.0,9.112e-05,2]
[355770410,1741548638689,-500.0,9.112e-05,2]
[355770411,1741548638698,-620.36,9.112e-05,2]
[355770412,1741548638707,-500.0,9.112e-05,2]
[355770414,1741548638716,-500.0,9.112e-05,2]
[355770415,1741548638727,-500.0,9.112e-05,2]
[355770417,1741548638736,-730.47,9.112e-05,2]
[355770419,1741548638746,-500.0,9.112e-05,2]
[355770421,1741548638756,-990.06,9.112e-05,2]
[355770424,1741548638766,-500.0,9.112e-05,2]
[355770425,1741548638776,-500.0,9.112e-05,2]
[355770427,1741548638786,-223.54900745,9.112e-05,2]
[355770429,1741548638795,-523.93,9.112e-05,2]
[355770431,1741548638805,-500.0,9.112e-05,2]
[355770433,1741548638819,-1815.52,9.112e-05,2]
[355770435,1741548638828,-609.1,9.112e-05,2]
[355770437,1741548638837,-1000.0,9.112e-05,2]
[355770439,1741548638847,-1086.08,9.112e-05,2]
[355770441,1741548638856,-516.45907688,9.112e-05,2]
[355770443,1741548638866,-500.0,9.112e-05,2]
[355770445,1741548638875,-6091.73,9.112e-05,2]
[355770447,1741548638884,-500.0,9.112e-05,2]
[355770449,1741548638894,-500.0,9.112e-05,2]
[355770451,1741548638903,-500.0,9.112e-05,2]
[355770453,1741548638913,-500.0,9.112e-05,2]
[355770455,1741548638922,-500.0,9.112e-05,2]
[355770457,1741548638932,-681.39,9.112e-05,2]
[355770459,1741548638941,-500.0,9.112e-05,2]
[355770461,1741548638950,-500.0,9.112e-05,2]
[355770463,1741548638960,-500.0,9.112e-05,2]
[355770465,1741548638970,-500.0,9.112e-05,2]
[355770467,1741548638979,-500.0,9.112e-05,2]
[355770469,1741548638988,-534.05,9.112e-05,2]
[355770471,1741548638998,-500.0,9.112e-05,2]
[355770473,1741548639007,-1033.9,9.112e-05,2]
[355770475,1741548639017,-549.67,9.112e-05,2]
[355770477,1741548639026,-500.0,9.112e-05,2]
[355770479,1741548639036,-500.0,9.112e-05,2]
[355770481,1741548639046,-727.68,9.112e-05,2]
[355770483,1741548639055,-500.65,9.112e-05,2]
[355770485,1741548639069,-1272.83,9.112e-05,2]
[355770487,1741548639078,-784.03,9.112e-05,2]
[355770489,1741548639087,-500.0,9.112e-05,2]
[355770491,1741548639097,-1601.31,9.112e-05,2]
[355770493,1741548639106,-500.0,9.112e-05,2]
[355770495,1741548639115,-6726.2,9.112e-05,2]
[355770497,1741548639125,-743.92,9.112e-05,2]
[355770499,1741548639134,-500.0,9.112e-05,2]
[355770501,1741548639144,-538.88,9.112e-05,2]
[355770503,1741548639154,-500.0,9.112e-05,2]
[355770505,1741548639164,-835.79,9.112e-05,2]
[355770507,1741548639174,-500.0,9.112e-05,2]
[355770509,1741548639183,-2500.0,9.112e-05,2]
[355770511,1741548639193,-511.54,9.113e-05,2]
[355770512,1741548639201,-500.0,9.113e-05,2]
[355770514,1741548639211,-48583.86261395,9.192e-05,2]
[355770520,1741548639262,-954.9528264,9.192e-05,2]
[355770523,1741548639275,-1000.0,9.192e-05,2]
[355770527,1741548639306,-1406.72907276,9.192e-05,2]
[355770538,1741548639408,-1031.44063193,9.192e-05,2]
[355770559,1741548639625,-891.60485829,9.192e-05,2]
[355770561,1741548639635,-1000.0,9.247e-05,2]
[355770563,1741548639645,-1648.19,9.3e-05,2]
[355770565,1741548639655,-389.47090855,9.338e-05,2]
[355770567,1741548639665,-707.65,9.339e-05,2]
[355770570,1741548639675,-531.82,9.339e-05,2]
[355770573,1741548639686,-1119.66,9.339e-05,2]
[355770575,1741548639699,-500.0,9.339e-05,2]
[355770577,1741548639709,-772.45,9.339e-05,2]
[355770579,1741548639719,-582.87,9.339e-05,2]
[355770582,1741548639729,-992.04,9.339e-05,2]
[355770585,1741548639739,-500.0,9.339e-05,2]
[355770588,1741548639748,-868.93,9.339e-05,2]
[355770590,1741548639758,-500.0,9.339e-05,2]
[355770592,1741548639767,-1452.86,9.339e-05,2]
[355770594,1741548639778,-531.3,9.339e-05,2]
[355770596,1741548639788,-878.5,9.339e-05,2]
[355770598,1741548639798,-1059.63,9.339e-05,2]
[355770600,1741548639808,-606.54,9.339e-05,2]
[355770602,1741548639822,-583.59,9.339e-05,2]
[355770604,1741548639831,-573.8,9.339e-05,2]
[355770606,1741548639841,-500.0,9.339e-05,2]
[355770608,1741548639851,-643.91,9.339e-05,2]
[355770610,1741548639860,-529.25,9.339e-05,2]
[355770612,1741548639870,-500.0,9.339e-05,2]
[355770614,1741548639880,-500.0,9.339e-05,2]
[355770616,1741548639889,-572.54,9.339e-05,2]
[355770618,1741548639899,-500.0,9.339e-05,2]
[355770620,1741548639909,-980.14,9.339e-05,2]
[355770622,1741548639920,-591.63,9.339e-05,2]
[355770624,1741548639929,-46087.63750284,9.34e-05,2]
[355770631,1741548639982,-922.82862631,9.34e-05,2]
[355770641,1741548640082,-535.26542884,9.34e-05,2]
[355770656,1741548640225,-5129.69912162,9.34e-05,2]
[355770659,1741548640237,-610.01399412,9.34e-05,2]
[355770661,1741548640248,-4153.5,9.34e-05,2]
[355770664,1741548640277,-500.0,9.112e-05,2]
[355770666,1741548640287,-589.78850384,9.34e-05,2]
[355770669,1741548640299,-527.47403371,9.34e-05,2]
[355770671,1741548640318,-335.96499997,9.34e-05,2]
[355770674,1741548640331,-63691.75560637,9.34e-05,2]
[355770675,1741548640340,-2776.4999,9.34e-05,2]
[355770677,1741548640350,-882.28,9.342e-05,2]
[355770680,1741548640360,-500.0,9.355e-05,2]
[355770681,1741548640370,-869.45,9.355e-05,2]
[355770683,1741548640380,-500.0,9.355e-05,2]
[355770685,1741548640390,-641.88,9.355e-05,2]
[355770688,1741548640400,-232.51617,9.355e-05,2]
[355770690,1741548640410,-832.21,9.355e-05,2]
[355770692,1741548640419,-500.0,9.355e-05,2]
[355770694,1741548640429,-1279.82,9.355e-05,2]
[355770696,1741548640439,-500.0,9.355e-05,2]
[355770698,1741548640449,-695.89,9.355e-05,2]
[355770699,1741548640459,-500.0,9.355e-05,2]
[355770701,1741548640469,-153.821543,9.355e-05,2]
[355770703,1741548640479,-587.35,9.355e-05,2]
[355770705,1741548640488,-576.17,9.355e-05,2]
[355770707,1741548640498,-973.03,9.355e-05,2]
[355770709,1741548640507,-500.0,9.355e-05,2]
[355770711,1741548640517,-1171.26,9.355e-05,2]
[355770713,1741548640527,-838.31,9.355e-05,2]
[355770715,1741548640536,-500.0,9.355e-05,2]
[355770717,1741548640546,-1323.16,9.355e-05,2]
[355770719,1741548640555,-905.43620952,9.355e-05,2]
[355770722,1741548640569,-1066.45379048,9.355e-05,2]
[355770724,1741548640579,-500.0,9.355e-05,2]
[355770726,1741548640589,-548.25,9.355e-05,2]
[355770728,1741548640599,-3284.92,9.355e-05,2]
[355770730,1741548640608,-2023.56,9.355e-05,2]
[355770732,1741548640618,-500.0,9.355e-05,2]
[355770734,1741548640627,-796.91,9.355e-05,2]
[355770736,1741548640637,-664.05,9.355e-05,2]
[355770737,1741548640647,-500.0,9.355e-05,2]
[355770740,1741548640657,-786.0,9.356e-05,2]
[355770741,1741548640667,-1428.0,9.356e-05,2]
[355770743,1741548640677,-907.0,9.356e-05,2]
[355770746,1741548640690,-541.0,9.356e-05,2]
[355770747,1741548640700,-1270.0,9.356e-05,2]
[355770750,1741548640709,-4076.0,9.356e-05,2]
[355770751,1741548640719,-1113.0,9.356e-05,2]
[355770753,1741548640730,-151.0,9.356e-05,2]
[355770756,1741548640740,-150.0,9.356e-05,2]
[355770758,1741548640750,-1278.0,9.356e-05,2]
[355770760,1741548640760,-2032.0,9.356e-05,2]
[355770762,1741548640771,-778.95737051,9.36e-05,2]
[355770763,1741548640780,-500.0,9.386e-05,2]
[355770764,1741548640790,-500.0,9.386e-05,2]
[355770765,1741548640799,-500.0,9.386e-05,2]
[355770766,1741548640808,-500.0,9.386e-05,2]
[355770767,1741548640821,-500.0,9.386e-05,2]
[355770768,1741548640832,-203.75196162,9.386e-05,2]
[355770769,1741548640842,-511.02149131,9.386e-05,2]
[355770770,1741548640853,-500.0,9.386e-05,2]
[355770771,1741548640863,-500.0,9.386e-05,2]
[355770772,1741548640872,-512.35354066,9.386e-05,2]
[355770774,1741548640882,-500.0,9.386e-05,2]
[355770776,1741548640892,-500.0,9.386e-05,2]
[355770778,1741548640901,-500.0,9.386e-05,2]
[355770780,1741548640911,-500.0,9.386e-05,2]
[355770782,1741548640920,-500.0,9.386e-05,2]
[355770784,1741548640930,-287.31737609,9.386e-05,2]
[355770786,1741548640940,-500.0,9.386e-05,2]
[355770788,1741548640949,-500.0,9.386e-05,2]
[355770790,1741548640959,-500.0,9.386e-05,2]
[355770792,1741548640969,-500.0,9.386e-05,2]
[355770794,1741548640979,-500.0,9.386e-05,2]
[355770796,1741548640989,-500.0,9.386e-05,2]
[355770798,1741548640999,-500.0,9.386e-05,2]
[355770800,1741548641010,-500.0,9.386e-05,2]
[355770802,1741548641020,-500.0,9.386e-05,2]
[355770804,1741548641029,-500.0,9.386e-05,2]
[355770806,1741548641039,-500.0,9.386e-05,2]
[355770808,1741548641048,-500.0,9.386e-05,2]
[355770810,1741548641057,-595.96,9.386e-05,2]
[355770812,1741548641068,-1455.57,9.386e-05,2]
[355770814,1741548641078,-1443.67,9.386e-05,2]
[355770817,1741548641089,-656.41,9.386e-05,2]
[355770819,1741548641099,-783.03,9.386e-05,2]
[355770821,1741548641108,-500.0,9.386e-05,2]
[355770823,1741548641118,-620.36,9.386e-05,2]
[355770825,1741548641127,-500.0,9.386e-05,2]
[355770827,1741548641136,-730.47,9.386e-05,2]
[355770829,1741548641146,-500.0,9.386e-05,2]
[355770831,1741548641154,-990.06,9.386e-05,2]
[355770833,1741548641164,-500.0,9.386e-05,2]
[355770834,1741548641174,-523.93,9.386e-05,2]
[355770836,1741548641183,-1815.52,9.386e-05,2]
[355770838,1741548641193,-1086.08,9.386e-05,2]
[355770840,1741548641202,-6091.73,9.386e-05,2]
[355770842,1741548641212,-500.0,9.386e-05,2]
[355770844,1741548641221,-500.0,9.386e-05,2]
[355770846,1741548641231,-500.0,9.386e-05,2]
[355770848,1741548641240,-681.39,9.386e-05,2]
[355770850,1741548641250,-500.0,9.386e-05,2]
[355770852,1741548641260,-500.0,9.386e-05,2]
[355770855,1741548641270,-500.0,9.386e-05,2]
[355770857,1741548641279,-500.0,9.386e-05,2]
[355770858,1741548641289,-524.34380918,9.386e-05,2]
[355770860,1741548641298,-534.05,9.386e-05,2]
[355770862,1741548641307,-500.0,9.386e-05,2]
[355770864,1741548641318,-1033.9,9.386e-05,2]
[355770866,1741548641328,-549.67,9.386e-05,2]
[355770868,1741548641337,-500.0,9.386e-05,2]
[355770870,1741548641347,-500.0,9.386e-05,2]
[355770872,1741548641356,-727.68,9.386e-05,2]
[355770874,1741548641366,-500.65,9.386e-05,2]
[355770876,1741548641376,-1272.83,9.386e-05,2]
[355770878,1741548641385,-784.03,9.386e-05,2]
[355770880,1741548641395,-500.0,9.386e-05,2]
[355770882,1741548641404,-1601.31,9.386e-05,2]
[355770884,1741548641414,-500.0,9.386e-05,2]
[355770886,1741548641423,-6726.2,9.386e-05,2]
[355770888,1741548641432,-743.92,9.386e-05,2]
[355770890,1741548641442,-500.0,9.386e-05,2]
[355770892,1741548641452,-538.88,9.386e-05,2]
[355770894,1741548641461,-835.79,9.386e-05,2]
[355770896,1741548641471,-500.0,9.386e-05,2]
[355770898,1741548641481,-511.54,9.387e-05,2]
[355770900,1741548641490,-500.0,9.387e-05,2]
[355770902,1741548641499,-5000.0,9.56e-05,2]
[355770904,1741548641508,-150.0,9.562e-05,7]
[355770906,1741548641518,-255.0,9.612e-05,2]
[355770908,1741548641527,-707.65,9.613e-05,2]
[355770910,1741548641537,-531.82,9.613e-05,2]
[355770913,1741548641547,-1119.66,9.613e-05,2]
[355770915,1741548641557,-500.0,9.613e-05,2]
[355770917,1741548641569,-772.45,9.613e-05,2]
[355770918,1741548641579,-582.87,9.613e-05,2]
[355770921,1741548641588,-992.04,9.613e-05,2]
[355770923,1741548641598,-868.93,9.613e-05,2]
[355770924,1741548641607,-500.0,9.613e-05,2]
[355770926,1741548641617,-1452.86,9.613e-05,2]
[355770928,1741548641628,-531.3,9.613e-05,2]
[355770930,1741548641637,-878.5,9.613e-05,2]
[355770932,1741548641647,-1059.63,9.613e-05,2]
[355770934,1741548641657,-606.54,9.613e-05,2]
[355770936,1741548641666,-583.59,9.613e-05,2]
[355770938,1741548641676,-573.8,9.613e-05,2]
[355770940,1741548641686,-500.0,9.613e-05,2]
[355770942,1741548641698,-643.91,9.613e-05,2]
[355770944,1741548641707,-529.25,9.613e-05,2]
[355770946,1741548641717,-500.0,9.613e-05,2]
[355770948,1741548641727,-500.0,9.613e-05,2]
[355770950,1741548641737,-572.54,9.613e-05,2]
[355770952,1741548641746,-500.0,9.613e-05,2]
[355770954,1741548641756,-980.14,9.613e-05,2]
[355770956,1741548641768,-591.63,9.613e-05,2]
[355770958,1741548641777,-500.0,9.629e-05,2]
[355770961,1741548641787,-869.45,9.629e-05,2]
[355770962,1741548641796,-641.88,9.629e-05,2]
[355770965,1741548641806,-232.51617,9.629e-05,2]
[355770966,1741548641816,-832.21,9.629e-05,2]
[355770969,1741548641825,-500.0,9.629e-05,2]
[355770970,1741548641835,-1279.82,9.629e-05,2]
[355770973,1741548641845,-695.89,9.629e-05,2]
[355770974,1741548641855,-500.0,9.629e-05,2]
[355770976,1741548641864,-153.821543,9.629e-05,2]
[355770978,1741548641874,-587.35,9.629e-05,2]
[355770980,1741548641883,-576.17,9.629e-05,2]
[355770982,1741548641893,-973.03,9.629e-05,2]
[355770984,1741548641902,-500.0,9.629e-05,2]
[355770986,1741548641912,-1171.26,9.629e-05,2]
[355770988,1741548641921,-838.31,9.629e-05,2]
[355770990,1741548641931,-500.0,9.629e-05,2]
[355770992,1741548641940,-1323.16,9.629e-05,2]
[355770994,1741548641949,-1971.89,9.629e-05,2]
[355770996,1741548641959,-500.0,9.629e-05,2]
[355770998,1741548641969,-548.25,9.629e-05,2]
[355771000,1741548641978,-3284.92,9.629e-05,2]
[355771002,1741548641987,-2023.56,9.629e-05,2]
[355771004,1741548641997,-500.0,9.629e-05,2]
[355771006,1741548642007,-796.91,9.629e-05,2]
[355771008,1741548642017,-664.05,9.629e-05,2]
[355771010,1741548642026,-500.0,9.66e-05,2]
[355771012,1741548642036,-500.0,9.66e-05,2]
[355771014,1741548642046,-500.0,9.66e-05,2]
[355771016,1741548642056,-500.0,9.66e-05,2]
[355771018,1741548642067,-500.0,9.66e-05,2]
[355771020,1741548642076,-500.0,9.66e-05,2]
[355771022,1741548642086,-500.0,9.66e-05,2]
[355771024,1741548642095,-500.0,9.66e-05,2]
[355771026,1741548642104,-500.0,9.66e-05,2]
[355771028,1741548642113,-500.0,9.66e-05,2]
[355771030,1741548642122,-500.0,9.66e-05,2]
[355771032,1741548642132,-500.0,9.66e-05,2]